Workbook

Sheet Proforma
B2: Direct Capitalization | Development Analysis
B5: Property Data | F5: Development Costs | J5: Construction Interest-Only Financing | N5: Market Metrics
B6: Land Area | C6: Acres | D6: 8.42 | F6: Land Cost | G6: $ Amount | H6: 1000000 | J6: Annual Interest Rate | K6: % | L6: 0.07 | N6: Market Cap Rate | O6: % | P6: 0.07
B7: # Units | C7: Units | D7: 40 | F7: Site + FFE + Dev Fee + Bond | G7: $ Amount | H7: 1834556 | J7: Amortization Period | K7: Years | L7: 3 | N7: Required Development Spread | O7: % | P7: 0.015
B8: Rentable Area Ratio | C8: % | D8: 1 | F8: Construction Hard Costs | G8: $ Amount | H8: 4189791 | J8: Loan Term | K8: Year | L8: 3 | N8: Required Cash-on-Cash | O8: % | P8: 0.1
B9: Rental Income | C9: $ per Month | D9: 2700 | F9: Contingency | G9: $ Amount | H9: 613565 | J9: Loan to Value Ratio | K9: % | L9: 0.8
B10: Parking Income | C10: $/Yr | D10: 0 | F10: Soft Costs | G10: $ Amount | H10: 111310 | J10: DSCR | K10: #.## | L10: 1.25
B11: Other Income | C11: $/Yr | D11: 0 | F11: Loan Cost | G11: $ Amount | H11: 141588 | J11: Payments Per Year | K11: ## | L11: 12
B12: VACL (stabilized) | C12: % | D12: 0.1
B13: Operating Expenses | C13: $ per Yr | D13: 388800
B17: Calculation of Stabilized NOI | F17: Calculation of Total Project Cost | J17: Calculation of Property Value | N17: Net Cap Rate Calculations
B18: Rentable Units | D18: =D7*D8 -> 40 | F18: Land Cost | H18: =H6 -> 1000000 | J18: Net Operating Income | L18: =D26 -> 777600 | N18: Net Operating Income | P18: =D26 -> 777600
B19: Annual Potential Rental Income | D19: =D7*D9*12 -> 1296000 | F19: +Site + FFE + Dev Fee + Bond | H19: 1834556 | J19: ÷Market Cap Rate | L19: =P6 -> 0.07 | N19: ÷Total Project Costs | P19: =H24 -> 7890810
B20: -VACL | D20: =D19*D12 -> 129600 | F20: +Construction Hard Costs | H20: 4189791 | J20: =Market Value of Property | L20: =L18/L19 -> 11108571.43 | N20: =Return On Total Costs | P20: =P18/P19 -> 0.09854501629
B21: =Effective Rental Income | D21: =D19-D20 -> 1166400 | F21: +Contingency | H21: 613565 | J21: Property Value per Unit | L21: =L20/D7 -> 277714.2857 | N21: -Required Spread | P21: =P7 -> 0.015
B22: +Other income | D22: =D11 -> 0 | F22: +Soft Costs | H22: 111310 | N22: =Required Disposition Cap Rate | P22: =P20-P21 -> 0.08354501629
B23: +Parking Income | D23: =D10 -> 0 | F23: +Soft Cost Contingency | H23: 141588 | J23: Calculation of Potential Development Profit | N23: -Market Cap Rate | P23: =P6 -> 0.07
B24: =Gross Operating Income | D24: =D21+D22+D23 -> 1166400 | F24: =Total Project Cost | H24: =SUM(H18:H23) -> 7890810 | J24: Market Value of Property | L24: =L20 -> 11108571.43 | N24: =Net Cap Rate | P24: =P22-P23 -> 0.01354501629
B25: -Operating Expenses | D25: =D13 -> 388800 | J25: -Total Project Cost | L25: =H24 -> 7890810 | N25: Indicated Decision | P25: =IF(P24>0,"Yes","No") -> Yes
B26: =Net Operating Income (NOI) | D26: =D24-D25 -> 777600 | J26: =Potential Development Profit | L26: =L24-L25 -> 3217761.429
F27: Total Project Cost per Unit | H27: =H24/D18 -> 197270.25
B31: Calculation of Land Residual | F31: Calculation of Justified Land Price | J31: Mortgage Value Analysis | N31: Equity Value Analysis
B32: Market Value of Property | D32: =L20 -> 11108571.43 | F32: Market Cap Rate | H32: =P6 -> 0.07 | J32: LTV Loan Amount | L32: =L25*L9 -> 6312648 | N32: Net Operating Income | P32: =D26 -> 777600
B33: -Hard Costs | D33: =H20+H21 -> 4803356 | F33: +Required Spread | H33: =P7 -> 0.015 | J33: Construction Loan "Interest Only" % | L33: 0.07 | N33: -Annual Debt Service | P33: =L42 -> 441885.36
B34: -Soft Costs | D34: =H22+H23 -> 252898 | F34: =Required Return on Costs | H34: =H32+H33 -> 0.085 | N34: =Equity Cash Flow (CFBT) | P34: =P32-P33 -> 335714.64
B35: =Residual Land Value | D35: =D32-D33-D34 -> 6052317.429 | F35: xTotal Hard and Soft Costs | H35: =D33+D34 -> 5056254 | J35: NOI | L35: =D26 -> 777600 | N35: ÷Required Cash-on-Cash | P35: =P8 -> 0.1
B36: (includes Building Developer's Profit) | F36: =Required Building Income | H36: =H34*H35 -> 429781.59 | J36: ÷DSCR | L36: =L10 -> 1.25 | N36: =Value of the Equity | P36: =P34/P35 -> 3357146.4
J37: =Maximum ADS | L37: =L35/L36 -> 622080
B38: Calculation of Equity Multiple | F38: Net Operating Income | H38: =D26 -> 777600 | N38: Mortgage -Equity Analysis
B39: Potential Development Profit | D39: =L26 -> 3217761.429 | F39: -Required Building Income | H39: =H36 -> 429781.59 | J39: Maximum Loan Amount | L39: =L35/L36/L33 -> 8886857.143 | N39: Value of the Mortgage | P39: =L41 -> 6312648
B40: ÷Cash Required from Developer | D40: =H24-L32 -> 1578162 | F40: =Residual Land Income | H40: =H38-H39 -> 347818.41 | N40: +Value of the Equity | P40: =P36 -> 3357146.4
B41: =Equity Multiple | D41: =D39/D40 -> 2.038929735 | F41: ÷Required Return on Costs | H41: =H34 -> 0.085 | J41: LTC Loan Amount | L41: =MIN(L32,L39) -> 6312648 | N41: =Overall Property Value | P41: =P39+P40 -> 9669794.4
F42: =Developer's Justified Land Price | H42: =H40/H41 -> 4091981.294 | J42: Annual Debt Service | L42: =L41*L33 -> 441885.36 | N42: % OccupancyBreak-Even | P42: =(D25+L42)/D19 -> 0.6409609259
B45: DISCLAIMER: Any information important to you or another party should be independently
B46: confirmed within an applicable due diligence period.
B48: ©2025 Ernie Anaya, Bull Realty, Inc.

Sheet Entitlement
A1: Fee/Permit Item | B1: Governing Authority | C1: Fee Calculation Basis | D1: Unit Cost | E1: Quantity | F1: Total Estimated Cost
A3: Due Diligence & Design
A4: Geotechnical Survey | B4: Private Consultant | C4: Project Scope | D4: 3500 | E4: 1 | F4: 3500
A5: Phase I ESA | B5: Private Consultant | C5: Project Scope | D5: 3000 | E5: 1 | F5: 3000
A6: Boundary & Topo Survey | B6: Private Consultant | C6: Per Lot | D6: 300 | E6: 41 | F6: 12300
A7: Civil Engineering & Design | B7: Private Consultant | C7: % of Hard Costs | D7: 0.05 | E7: 1 | F7: 73279
A9: Planning & Zoning Fees
A10: Preliminary Plat Application | B10: ACC Planning Dept. | C10: Base + Per Lot | D10: $100 + $10/lot | E10: 1 | F10: 510
A11: Final Plat Application | B11: ACC Planning Dept. | C11: Base + Per Lot (Capped) | D11: $150 + $30/lot | E11: 1 | F11: 500
A12: Construction Plan Review | B12: ACC Public Works | C12: Per Project | D12: 520 | E12: 1 | F12: 520
A13: Zoning Permits | B13: ACC Planning Dept. | C13: Per Lot | D13: 80 | E13: 41 | F13: 3280
A15: Land Disturbance Fees
A16: Land Disturbance Permit (Initial) | B16: ACC Public Works | C16: Per Disturbed Acre | D16: 410 | E16: 7 | F16: 2870
A17: Land Disturbance Permit (Monthly) | B17: ACC Public Works | C17: Per Acre Per Month | D17: 35 | E17: 42 (7ac x 6mo) | F17: 1470
A18: E&SC / NPDES Review | B18: ACC Public Works | C18: Per Disturbed Acre | D18: 45 | E18: 7 | F18: 315
A19: Stormwater Plan Review | B19: ACC Public Works | C19: Per Project | D19: 476 | E19: 1 | F19: 476
A20: Flood Plain Construction Permit | B20: ACC Public Works | C20: Per Project | D20: 65 | E20: 1 | F20: 65
A22: Building & Lot Fees
A23: Building Permits | B23: ACC Building Inspections | C23: Per Lot (Valuation-Based) | D23: 140 | E23: 41 | F23: 5740
A24: Driveway Permits | B24: ACC Public Works | C24: Per Lot | D24: 85 | E24: 41 | F24: 3485
A25: Subtotal | F25: =SUM(F4:F24) -> 111310

Sheet Utility
A1: Category | B1: Item | C1: Cost Per Unit | D1: Quantity | E1: Total Estimated Cost
A3: Water (ACC PUD) | B3: Development Application & Review | C3: $100 + $160 + $130 | D3: 1 Project | E3: 390
B4: Water Main Inspection | C4: $2.88 / LF | D4: 2,000 LF | E4: 5760
B5: Meter Charge (3/4") | C5: $345 / Lot | D5: 41 Lots | E5: 14145
B6: Connection Fee (3/4") | C6: $1,193 / Lot | D6: 41 Lots | E6: 48913
A8: Sewer (ACC PUD) | B8: Sewer System Evaluation | C8: 150 | D8: 1 Project | E8: 150
B9: Sewer Line Inspection | C9: $1.24 / LF | D9: 2,000 LF | E9: 2480
B10: Stub Charge (Short Side) | C10: $850 / Lot | D10: 41 Lots | E10: 34850
B11: Private Treatment Plant | E11: 600000
A13: Electric (Walton EMC) | B13: Membership & Account Fees | C13: $5 + $30/Lot | D13: 1 + 41 Lots | E13: 1235
B14: Underground System Contribution | C14: $3,000 / Lot | D14: 41 Lots | E14: 123000
A16: Other Utilities | B16: Gas & Comms Conduit (Dig-Once) | C16: $15 - $25 / LF | D16: 2,000 LF | E16: 30000
A17: Subtotal | E17: =SUM(E3:E16) -> 860923

Sheet Hard Costs
A1: Category | B1: Cost Item | C1: Estimate
A3: I. Soft Costs | B3: Due Diligence & Surveying
B4: Civil Engineering & Design
B5: Municipal Permits & Fees
A7: II. Utility Infrastructure | B7: Water System (ACC PUD)
B8: Sewer System (ACC PUD)
B9: Private Sewer Plant
B10: Electrical System (Walton EMC)
B11: Other Utilities (Gas/Comms)
A13: III. Hard Costs | B13: Land Clearing & Earthwork
B14: Stormwater Management System
B15: Manufactured Home Pads (41)
B16: Roads & Paver Grid System
A17: Contingency (10%)
A18: Total Estimated Land Development Cost | C18: 973635
